Cogmind - Beta 13 @@@ ROGUE MODE // 2024.04.07 @ 16:14:33 Player: TheWrinkledCat Result: Destroyed by D-53 Grenadier with Mini Grenade Launcher Performance ------------- Evolutions (1) 500 Regions Visited (4) 800 Robots Destroyed (33) 165 Value Destroyed (497) 497 Prototype IDs (0) 0 Alien Tech Used (0) 0 Bonus (0) 0 TOTAL SCORE: 1962 Bonus ------- None Cogmind --------- Core Integrity 0/400 Matter 300/300 Energy 100/100 System Corruption 0% Temperature Cool (0) Movement Core (350) Ox6 Location -9/Mines Parts ------- > --- POWER (1) -------- (None) > --- PROPULSION (3) --- (None) > --- UTILITY (3) ------ Large Storage Unit > --- WEAPON (2) ------- (None) > --- INVENTORY (15) --- Ion Engine Huge Storage Unit High-capacity Matter Pod (200) Peak State ------------ > --- POWER ------------ Ion Engine > --- PROPULSION ------- Light Treads Light Treads Compact Wheel > --- UTILITY ---------- Heat Sink Small Storage Unit High-capacity Matter Pod > --- WEAPON ----------- EM Pulse Gun Light Assault Rifle > --- INVENTORY -------- Ion Engine Wheel Small Laser Grenade Launcher [Rating: 9] Favorites ----------- Power Ion Engine Engine Ion Engine Propulsion Light Treads Treads Light Treads Wheel Compact Wheel Utility Small Storage Unit Device Heat Sink Storage Small Storage Unit Protection Light Armor Plating Weapon Light Assault Rifle Energy Gun EM Pulse Gun Ballistic Gun Light Assault Rifle Launcher Grenade Launcher Build | -11 -10 -10 -9 -9 ------- Run | Yrd Mat Min Mat Min Slots Evolved 2 | . . . 2 . Power . | . . . . . Propulsion 1 | . . . 1 . Utility 1 | . . . 1 . Weapon . | . . . . . Parts Attached 20 | 6 1 1 8 4 Power 1 | 1 . . . . Engine 1 | 1 . . . . Core . | . . . . . Reactor . | . . . . . Propulsion 5 | 2 . . 2 1 Treads 3 | 2 . . 1 . Leg . | . . . . . Wheel 2 | . . . 1 1 Hover . | . . . . . Flight . | . . . . . Utility 7 | 1 1 . 4 1 Device 2 | . 1 . 1 . Storage 4 | 1 . . 2 1 Processor . | . . . . . Hackware . | . . . . . Protection 1 | . . . 1 . Artifact . | . . . . . Weapon 7 | 2 . 1 2 2 Energy Gun 3 | 1 . 1 . 1 Energy Cannon . | . . . . . Ballistic Gun 3 | 1 . . 1 1 Ballistic Cannon . | . . . . . Launcher 1 | . . . 1 . Special Weapon . | . . . . . Impact Weapon . | . . . . . Slashing Weapon . | . . . . . Piercing Weapon . | . . . . . Special Melee Weapon . | . . . . . Unidentified Prototypes . | . . . . . Parts Lost 9 | . . . 2 7 Power 1 | . . . . 1 Propulsion 4 | . . . 1 3 Utility 2 | . . . 1 1 Weapon 2 | . . . . 2 Highest Loss Streak 7 | . . . 1 7 To Critical Strikes . | . . . . . Average Slot Usage (%) 94 | . 91 99 94 84 Engine 12 | . 14 14 11 11 Treads 25 | . 28 28 24 20 Wheel 3 | . . . 8 1 Device 6 | . 6 14 4 . Storage 18 | . 14 14 22 20 Protection 1 | . . . 1 9 Energy Gun 9 | . 14 13 7 2 Ballistic Gun 10 | . 14 14 7 11 Launcher 3 | . . . 7 6 Naked Turns . | . . . . . Heaviest Build 39 | 13 14 14 39 36 Greatest Support 60 | 40 40 40 60 40 Greatest Overweight (x) 8 | . . . . 8 Average Overweight (x) . | . . . . 2 Largest Inventory Capacity 25 | 8 8 8 15 25 Average Capacity 10 | 7 8 8 11 15 Most Carried 8 | 8 6 7 8 8 Average Carried 5 | 4 4 5 5 4 Final Capacity 15 | 8 8 8 15 15 Final Carried 6 | 4 5 6 5 3 Class Distribution -------------------- 100% | Mutant Dominant Class ---------------- Mutant | -10/Materials Mutant | -10/Mines Mutant | -9/Materials Mutant | -9/Mines Resources | -11 -10 -10 -9 -9 ----------- Run | Yrd Mat Min Mat Min Matter Collected 726 | 269 17 18 378 44 Remotely . | . . . . . Salvage Created 944 | 161 116 83 553 31 Parts 61 | 12 5 11 30 3 Haulers Intercepted 1 | . . . 1 . Recyclers Shooed 2 | . . . 2 . Parts Field Recycled . | . . . . . Retrieved Matter . | . . . . . Parts Self-Destructed . | . . . . . Prevented . | . . . . . Kills | -11 -10 -10 -9 -9 ------- Run | Yrd Mat Min Mat Min Combat Hostiles Destroyed 18 | . 1 6 7 4 Guns 10 | . 1 4 4 1 AOE 8 | . . 2 3 3 Classes Destroyed 9 | 3 1 1 4 . Worker 3 | 1 . . 2 . Builder 3 | . . . 3 . Tunneler 3 | 3 . . . . Hauler 1 | . . . 1 . Recycler 5 | 1 1 . 3 . Swarmer 10 | . . 6 . 4 Grunt 6 | . 1 . 5 . Duelist 1 | . . . 1 . Sentry 1 | . . . 1 . Best Kill Streak 5 | 4 2 3 5 3 Combat Bots Only 3 | . 1 3 3 3 Max Kills in Single Turn 4 | 1 1 2 4 3 Gunslinging . | . . . . . Exploded 3 | . . 2 1 3 Melee . | . . . . . Uniques/NPCs Destroyed . | . . . . . Combat | -11 -10 -10 -9 -9 -------- Run | Yrd Mat Min Mat Min Hostile Shots Fired 94 | . 13 17 31 33 Missed 26 | . 3 6 11 6 Damage Taken 1399 | . 113 110 352 824 Core 491 | . 44 31 65 351 Absorbed by Shields . | . . . . . Core Remaining (%) 85 | 100 . 70 . . Volleys Fired 74 | 9 7 11 29 18 Largest 2 | 2 2 2 2 2 Hottest 70 | 70 70 60 70 50 Shots Fired 118 | 18 14 22 45 19 Gun 108 | 18 14 22 36 18 Cannon . | . . . . . Launcher 10 | . . . 9 1 Special . | . . . . . Kinetic 62 | 9 7 11 17 18 Thermal 16 | 9 7 . . . Explosive 10 | . . . 9 1 Electromagnetic 30 | . . 11 19 . Robot Hit Streak 9 | 3 8 9 7 3 Robot Miss Streak 3 | 1 1 3 1 3 Penetration Max . | . . . . . Secondary Targets . | . . . . . Shots Hit Robots 76 | 12 10 11 32 11 Core Hits 51 | 7 4 7 27 6 Critical Kills . | . . . . . Critical Parts Destroyed . | . . . . . Critical Strikes . | . . . . . Melee Attacks . | . . . . . Impact . | . . . . . Slashing . | . . . . . Piercing . | . . . . . Sneak Attacks . | . . . . . Combat Hostiles . | . . . . . Follow-up Attacks . | . . . . . Damage Inflicted 1708 | 128 98 217 995 270 Guns 699 | 128 98 114 280 79 Cannons . | . . . . . Explosions 1004 | . . 98 715 191 Melee . | . . . . . Ramming 5 | . . 5 . . Kinetic 279 | 55 47 12 86 79 Thermal 248 | 73 51 98 26 . Explosive 880 | . . . 689 191 Electromagnetic 296 | . . 102 194 . Impact . | . . . . . Slashing . | . . . . . Piercing . | . . . . . Highest Corruption . | . . . . . Average Corruption . | . . . . . Corruption Purged . | . . . . . Corruption Blocked . | . . . . . Overload Shots . | . . . . . Overflow Damage 50 | . . . 23 27 Projectiles . | . . . . . Explosions 50 | . . . 23 27 Melee . | . . . . . Knockbacks . | . . . . . Impact . | . . . . . Kinetic . | . . . . . Secondary . | . . . . . Self-Inflicted Damage 144 | . . 26 89 29 Shots 6 | . . 1 4 1 Rammed 1 | . . 1 . . Targets Rammed 1 | . . 1 . . Kicked . | . . . . . Crushed . | . . . . . Highest Temperature 104 | 90 104 12 35 10 Average Temperature 29 | 33 37 12 17 7 Received Heat Transfer 171 | . 60 . 84 27 Siege Activations . | . . . . . Robots Corrupted . | . . . . . Combat Hostiles . | . . . . . Parts Fried . | . . . . . Impact Corruptions . | . . . . . Robots Melted . | . . . . . Combat Hostiles . | . . . . . Parts Melted . | . . . . . Heat Transferred 520 | 222 148 100 50 . Parts Sabotaged . | . . . . . Parts Stolen . | . . . . . Parts Stripped . | . . . . . Power Chain Reactions 3 | . . 2 1 . Alert | -11 -10 -10 -9 -9 ------- Run | Yrd Mat Min Mat Min Peak Influence 356 | 25 51 164 356 257 Initial 134 | . 16 19 63 134 Average 131 | 8 33 74 223 243 Maximum Alert Level 1 | . . . 1 1 Low Security (%) 67 | 100 100 100 37 9 Level 1 32 | . . . 62 90 Level 2 . | . . . . . Level 3 . | . . . . . Level 4 . | . . . . . Level 5 . | . . . . . High Security . | . . . . . Max Security . | . . . . . Squads Dispatched 3 | . 2 . 1 . Investigation 1 | . 1 . . . Extermination . | . . . . . Reinforcement 2 | . 1 . 1 . Assault . | . . . . . Garrison . | . . . . . Intercept . | . . . . . Searches Triggered . | . . . . . Construction Impeded 1 | . . . 1 . Haulers Reinforced . | . . . . . Active Scanning Responses . | . . . . . Cargo Convoy Interrupts . | . . . . . Stealth | -11 -10 -10 -9 -9 --------- Run | Yrd Mat Min Mat Min Distress Signals 4 | . 1 . 2 1 Communications Jammed . | . . . . . Distress Signals . | . . . . . Times Spotted 29 | . 6 6 12 5 Peak Tracking Total 5 | . 5 3 4 4 Tactical Retreats . | . . . . . Traps | -11 -10 -10 -9 -9 ------- Run | Yrd Mat Min Mat Min Traps Triggered 1 | . 1 . . . Indirectly . | . . . . . Trap Hack Attempts . | . . . . . Triggered . | . . . . . Disarmed . | . . . . . Reprogrammed . | . . . . . Reused . | . . . . . Traps Extracted . | . . . . . Installed . | . . . . . Triggered . | . . . . . Machines | -11 -10 -10 -9 -9 ---------- Run | Yrd Mat Min Mat Min Machines Disabled 4 | . . . 3 1 Max in Single Turn 1 | . . . 1 1 Machines Repaired . | . . . . . Machines Dismantled . | . . . . . Machines Sabotaged . | . . . . . Overloaded Fab Kills . | . . . . . Hacking | -11 -10 -10 -9 -9 --------- Run | Yrd Mat Min Mat Min Machines Accessed . | . . . . . Terminals . | . . . . . Fabricators . | . . . . . Repair Stations . | . . . . . Recycling Units . | . . . . . Scanalyzers . | . . . . . Garrison Access . | . . . . . Total Hacks . | . . . . . Successful . | . . . . . Failed . | . . . . . Catastrophic . | . . . . . Database Lockouts . | . . . . . Manual . | . . . . . Terminals . | . . . . . Fabricators . | . . . . . Repair Stations . | . . . . . Recycling Units . | . . . . . Scanalyzers . | . . . . . Garrison Access . | . . . . . Terminal Hacks . | . . . . . Fabricator Hacks . | . . . . . Repair Station Hacks . | . . . . . Recycling Unit Hacks . | . . . . . Scanalyzer . | . . . . . Garrison Access Hacks . | . . . . . Unauthorized Hacks . | . . . . . Terminals . | . . . . . Fabricators . | . . . . . Repair Stations . | . . . . . Recycling Units . | . . . . . Scanalyzers . | . . . . . Garrison Access . | . . . . . Data Cores Recovered . | . . . . . Used . | . . . . . Hacking Detections . | . . . . . Full Trace Events . | . . . . . Feedback Events . | . . . . . Feedback Blocked . | . . . . . Robot Schematics Acquired . | . . . . . Robots Built . | . . . . . Authchips . | . . . . . Time . | . . . . . Total Robot Build Rating . | . . . . . Part Schematics Acquired . | . . . . . Parts Built . | . . . . . Authchips . | . . . . . Time . | . . . . . Total Part Build Rating . | . . . . . Parts Repaired . | . . . . . Time . | . . . . . Parts Recycled . | . . . . . Recycled Matter . | . . . . . Retrieved Matter . | . . . . . Retrieved Components . | . . . . . Parts Scanalyzed . | . . . . . Part Schematics Acquired . | . . . . . Parts Damaged . | . . . . . Bothacking | -11 -10 -10 -9 -9 ------------ Run | Yrd Mat Min Mat Min Used RIF Installer . | . . . . . Robots Hacked . | . . . . . Non-combat . | . . . . . Combat . | . . . . . Robot Hacks Applied . | . . . . . Relay Couplers Released . | . . . . . Fabnet Peak Effective % . | . . . . . Robots Rewired . | . . . . . Allies Hacked . | . . . . . Hacks Repelled . | . . . . . Allies | -11 -10 -10 -9 -9 -------- Run | Yrd Mat Min Mat Min Total Allies . | . . . . . Largest Group . | . . . . . Highest-Rated Group . | . . . . . Highest-Rated Ally . | . . . . . Total Orders . | . . . . . Ally Attacks . | . . . . . Total Damage . | . . . . . Kills . | . . . . . Allies Corrupted . | . . . . . Allies Melted . | . . . . . Intel | -11 -10 -10 -9 -9 ------- Run | Yrd Mat Min Mat Min Robot Analysis Total . | . . . . . Derelict Logs Recovered 1 | . . 1 . . Drone Launches . | . . . . . Drone Recoveries . | . . . . . Exploration | -11 -10 -10 -9 -9 ------------- Run | Yrd Mat Min Mat Min Turns Passed 737 | 105 105 181 261 85 Spaces Moved 327 | 49 52 90 109 27 Core 15 | 12 . . . 3 Treads 299 | 37 52 90 109 11 Legs . | . . . . . Wheels 13 | . . . . 13 Hover . | . . . . . Flight . | . . . . . Fastest Speed 50 | 50 160 160 160 110 Average Speed 156 | 133 160 160 160 166 Slowest Speed 450 | 160 160 160 160 450 Overloaded Moves . | . . . . . Propulsion Burnouts . | . . . . . Robots Hopped . | . . . . . Cave-ins Triggered . | . . . . . Exploration Rate (%) 17 | 4 21 28 19 16 Regions Visited 4 Branch Regions 2 Pre-discovered Areas . | . . . . . Known Exits Taken . | . . . . . Unknown Exits Taken 4 | 1 1 1 1 . Scrap Searched 1 | . . 1 . . Spaces Dug . | . . . . . Terrain Destroyed 53 | . . 5 45 3 Melee . | . . . . . Projectile . | . . . . . AOE 53 | . . 5 45 3 Terrain Rammed . | . . . . . Walls Destroyed . | . . . . . Machines Disabled . | . . . . . Actions | -11 -10 -10 -9 -9 --------- Run | Yrd Mat Min Mat Min Total 457 | 73 61 108 158 57 Wait . | . . . . . Move 323 | 48 51 89 108 27 Hop . | . . . . . Pick Up 21 | 10 2 3 5 1 Fast Attach . | . . . . . Attach 20 | 6 1 1 8 4 Detach 10 | . . 1 5 4 Swap . | . . . . . Drop 8 | . . 2 3 3 Fire 74 | 9 7 11 29 18 Melee . | . . . . . Ram . | . . . . . Kick . | . . . . . Crush 1 | . . 1 . . Escape Stasis . | . . . . . Rewire . | . . . . . Trap . | . . . . . Miscellaneous . | . . . . . Route ------- -11/Scrapyard -10/Materials -10/Mines -9/Materials -9/Mines History --------- Turn | Location | Event 10 | -11/Scrapyard | Discovered new exit (range 15) 106 | -11/Scrapyard | Entered Materials 187 | -10/Materials | Discovered new exit (range 15) 211 | -10/Materials | Entered Mines 227 | -10/Mines | Learned Materials trap positions 310 | -10/Mines | Build established: Mutant 356 | -10/Mines | Discovered new exit (range 13) 392 | -10/Mines | Entered Materials 392 | -9/Materials | Evolved 2 slots: Propulsion x1, Utility x1 393 | -9/Materials | Loaded intel: 12 trap records 531 | -9/Materials | Discovered new exit (range 9) 653 | -9/Materials | Entered Mines 654 | -9/Mines | Assembled infested the area 733 | -9/Mines | Core integrity fell below 50% 736 | -9/Mines | Core integrity fell below 20% 738 | -9/Mines | Destroyed by D-53 Grenadier with Mini Grenade Launcher Last Messages --------------- The unstable cave ceiling collapses. Lgt. Armor Plating destroyed. Pulverizer disabled. R-06 Scavenger destroyed. Sml. Laser destroyed. Acquired 13 matter. R-06 Scavenger collects Sml. Storage Unit. The unstable cave ceiling collapses. R-06 Scavenger destroyed. Wheel destroyed. Pulverizer disabled. G-34 Mercenary destroyed. Dropped Com. Wheel. Lgt. Treads destroyed. Lgt. Assault Rifle destroyed. Ion Engine destroyed. The unstable cave ceiling collapses. Lgt. Treads destroyed. U-05 Engineer builds a Wall. The unstable cave ceiling collapses. Map ----- +----------------------------------------------------+ | ????????????????????????????????????????? | | ????????????????????????????????????????? | | ????????????????????????????????????????? | | ????????????????????????????????????????? | | ????????????????????????????????????????? | | ????????????????????????????????????????? | | ????????????????????????????????????????? | | ????????????????????????????????????????? | | ????????????????????????????????????????? | | ????????????????????????????????????????? | | ????????????????????????????????????????? | | ????????????????????????????????????????? | | ????????????????????????????????????????? | | ????????????????????????????????????????? | | ?????????????###???##???????????????????? | | ?????????????# ??? ???????????????????? | | ?????????????# ??? ???????????????????? | | ?????????????# ""? ""??????????????????? | | ?????????????# """ """ ""??????????????? | | ?????????????# """ """ """?????????????? | | ?????????????# """ """ """?????????????? | | ?????????????# ?????????????? | | ?????????????# """ """ """?????????????? | | ?????????????# "" """ ?#??????????? | | ????????????## " """ ### ???????? | | ????????????# @ " """ ??????? | | ????????????## g ???????? | | ????????????# """ #??????????? | | ????????????## """ #??????????? | | ?????????????# """ #??????????? | | ?????????????# "" #??????????? | | ?????????????# #??????????? | | ?????????????# #??????????? | | ?????????????### dd ###??????????? | | ???????????????## # #??#????????? | | ????????????????# # #### # #??????? | | ????????????????##$ t #??????? | | ?????????????????# #??? | | ???????????????? # # #### %? | | ???????????????######### ##???????? | | ???????????????????????# #????????? | | ???????????????????????# [ "#????????? | | ???????????????????????# ] #????????? | | ???????????????????????# " #????????? | | ???????????????????????# #????????? | | ???????????????????????######T##????????? | | ????????????????????????????###?????????? | | ????????????????????????????????????????? | | ????????????????????????????????????????? | | ????????????????????????????????????????? | +----------------------------------------------------+ Best States ------------- Heat Dissipation 38 Energy Generation 10 Energy Capacity 250 Matter Stores 500 Matter Capacity 500 Sight Range 16 Terrain Scan Density 10 Armor Coverage 150 Evasion (%) 50 Recoil Reduction 3 Item Schematics ----------------- None Robot Schematics ------------------ None Fabricated ------------ Nothing Alien Tech Used ----------------- None Achievements -------------- None Challenges ------------ None Game ------ Seed DeliveryInertialExtractor Manual? 0 Play Time 00:14:28 Cumulative 5.3 hours Start 2024.04.07 @ 14:21:27 End 2024.04.07 @ 16:14:33 Sessions 4 Manual Loads 0 Difficulty Rogue Special Mode None Game No. 5 Rogue 4 Adventurer 0 Explorer 1 Win Type - Total 0 Types 0/0/0/0/0/0/0/0/0 Lore% 2 Gallery% 12 Achievement% 11 Wizard Run 0 Options --------- Layout 1 ASCII 0 Keyboard 0 Movement Mouse Keybinds 0 Fullscreen 0 Font 16/Terminus Map View 50x50 Zoom Use 10% Tactical HUD 0 Map Filters NONE Filters NONE Steam 1 RUN: fe2683d3-4662-475d-96b0-0273723c7a2e